bitfinex/quotes_SOLUSD_20260201
["timestamp","ask_amount","ask_price","bid_price","bid_amount"]
[1769966024763,19.01483968,102.09,102.04,9.21903487]
[1769966024926,4.13112181,102.09,102.05,4.23249019]
[1769966025124,4.13112181,102.1,102.06,4.23249019]
[1769966025339,13.35015668,102.11,102.07,14.02968819]
[1769966025731,23.14214649,102.13,102.08,4.23249019]
[1769966027457,23.14214649,102.13,102.08,14.0283147]
[1769966027748,13.35015668,102.12,102.08,14.0283147]
[1769966028252,13.35015668,102.11,102.07,14.02956138]
[1769966028441,34.2705955,102.13,102.05,33.71605776]
[1769966028442,9.21903487,102.1,102.06,14.03033896]
[1769966030053,19.01347114,102.1,102.06,14.03033896]
[1769966030957,23.14459295,102.1,102.06,14.03033896]
[1769966032457,23.14459295,102.1,102.07,4.23249019]
[1769966032759,4.13112181,102.1,102.07,14.0295897]
[1769966033361,13.92544539,102.1,102.07,4.23249019]
[1769966034959,23.14448026,102.1,102.07,4.23249019]
[1769966035153,4.13112181,102.09,102.06,9.79766417]
[1769966035358,13.35015668,102.08,102.04,4.23249019]
[1769966035545,34.28012181,102.1,102.03,14.03346264]
[1769966035546,13.35015668,102.06,102.03,14.03346264]
[1769966035745,13.35015668,102.06,102.02,14.03403566]
[1769966036058,13.35015668,102.05,102.02,4.23249019]
[1769966036251,13.35015668,102.05,102.01,41.25500087]
[1769966036460,9.23916664,102.04,102.01,41.25500087]
[1769966036839,13.37028845,102.05,102.01,41.25500087]
[1769966037840,9.23916664,102.05,102.02,4.23249019]
[1769966038163,13.37028845,102.05,102.02,4.23249019]
[1769966039562,23.169458,102.05,102.02,4.23249019]
[1769966039941,13.37028845,102.07,102.03,4.23249019]
[1769966040141,23.16820349,102.07,102.03,4.23249019]
[1769966040341,13.37028845,102.05,102.01,41.25484459]
[1769966040540,13.37028845,102.05,102.01,37.0223544]
[1769966040845,13.37028845,102.05,102.02,4.23249019]
[1769966041966,23.16970456,102.05,102.02,4.23249019]
[1769966042464,9.23916664,102.05,102.03,4.23249019]
[1769966043173,19.03664627,102.07,102.03,4.23249019]
[1769966043468,13.37028845,102.04,102.0,4.23249019]
[1769966043769,13.37028845,102.04,102.01,14.03539541]
[1769966043948,23.16991239,102.05,102.02,4.23249019]
[1769966044261,9.23916664,102.04,102.01,14.03539541]
[1769966044667,19.03750573,102.06,102.02,4.23249019]
[1769966044871,23.16862754,102.06,102.02,4.23249019]
[1769966045044,9.23916664,102.05,102.02,4.23249019]
[1769966045360,9.23916664,102.06,102.02,4.23249019]
[1769966045554,13.37028845,102.06,102.02,4.23249019]
[1769966045764,23.16845143,102.06,102.02,4.23249019]
[1769966046947,23.16845143,102.06,102.02,14.0342486]
[1769966049946,9.23916664,102.08,102.03,4.29529165]
[1769966050149,9.23916664,102.07,102.03,4.29529165]
[1769966050365,23.51087865,102.08,102.03,4.29529165]
[1769966050951,13.71417255,102.05,102.02,4.29529165]
[1769966051158,4.47500591,102.05,102.02,4.29529165]
[1769966051357,13.71417255,102.06,102.02,4.29529165]
[1769966052172,23.51271843,102.06,102.03,4.29529165]
[1769966054174,23.51271843,102.06,102.02,14.09703045]
[1769966054878,23.51271843,102.06,102.03,4.29529165]
[1769966057586,4.47500591,102.05,102.02,4.29529165]
[1769966059183,23.51271843,102.06,102.02,14.09704565]
[1769966059681,13.71417255,102.05,102.02,4.29529165]
[1769966060178,4.47500591,102.05,102.02,4.29529165]
[1769966060379,8.16998845,102.05,102.02,4.29529165]
[1769966060570,8.16998845,102.05,102.01,4.29529165]
[1769966062286,4.47500591,102.04,102.01,4.29529165]
[1769966062475,14.274818,102.05,102.02,4.29529165]
[1769966062675,4.47500591,102.04,102.01,4.29529165]
[1769966064395,14.27550376,102.04,102.01,4.29529165]
[1769966066100,9.80049785,102.04,102.01,4.29529165]
[1769966066275,14.27550376,102.04,102.01,4.29529165]
[1769966066601,3.69498254,102.05,102.02,4.29529165]
[1769966066777,4.47500591,102.06,102.02,4.29529165]
[1769966067702,14.27364178,102.06,102.03,4.29529165]
[1769966068475,9.05584442,102.1,102.04,4.29529165]
[1769966068778,3.69498254,102.09,102.04,4.29529165]
[1769966068984,4.47500591,102.08,102.04,4.29529165]
[1769966069697,3.69498254,102.1,102.05,4.29529165]
[1769966069902,13.28873442,102.11,102.06,4.29529165]
[1769966070312,4.47500591,102.12,102.08,4.29529165]
[1769966070804,8.16998845,102.14,102.09,4.29529165]
[1769966071009,17.96093792,102.14,102.09,4.29529165]
[1769966071494,3.69498254,102.13,102.1,4.29529165]
[1769966071704,17.96238954,102.12,102.07,13.4914023]
[1769966072283,14.267407,102.12,102.07,13.4914023]
[1769966073702,14.267407,102.12,102.08,4.29529165]
[1769966073996,17.96238954,102.12,102.08,4.29529165]
[1769966074200,17.96238954,102.12,102.08,14.09143909]
[1769966074810,4.47500591,102.11,102.07,4.29529165]
[1769966074979,13.48738363,102.12,102.06,4.29529165]
[1769966074980,8.16998845,102.1,102.06,4.29529165]
[1769966075686,14.27155547,102.08,102.04,41.31489852]
[1769966075981,17.96653801,102.08,102.04,41.31489852]
[1769966076596,14.27155547,102.08,102.04,41.31489852]
[1769966076795,14.27072,102.09,102.05,4.29529165]
[1769966077603,14.27072,102.09,102.05,7.99027419]
[1769966077903,14.27072,102.09,102.05,17.78879173]
[1769966078704,14.27072,102.09,102.05,14.09380919]
[1769966079300,14.14478354,102.11,102.07,4.32434488]
[1769966081403,14.14478354,102.11,102.07,14.12101816]
[1769966082395,22.11358339,102.13,102.09,4.32434488]
[1769966082598,4.35142344,102.12,102.08,4.32434488]
[1769966083097,9.79190656,102.13,102.09,4.32434488]
[1769966083395,17.84108756,102.1,102.06,14.12205311]
[1769966083988,8.04640598,102.09,102.06,14.12205311]
[1769966084202,9.79468158,102.1,102.07,4.32434488]
[1769966084203,17.84108756,102.1,102.07,4.32434488]
[1769966084382,17.83832681,102.13,102.08,4.32434488]
[1769966084587,4.35142344,102.12,102.08,4.32434488]
[1769966084899,3.69498254,102.12,102.07,4.48548476]
[1769966085098,3.69498254,102.12,102.08,4.48548476]
[1769966085508,7.89666483,102.12,102.08,4.48548476]
[1769966086007,17.68928367,102.12,102.08,14.28140838]
[1769966088907,4.20168229,102.12,102.09,4.48548476]
[1769966089492,13.99355615,102.13,102.09,4.48548476]
[1769966089706,4.20168229,102.13,102.09,4.48548476]
[1769966090898,4.20168229,102.13,102.1,14.27980405]
[1769966091815,13.99247219,102.14,102.11,4.48548476]
[1769966092007,13.99247219,102.14,102.1,14.27980405]
[1769966092208,4.20168229,102.13,102.1,14.27980405]
[1769966092514,17.68745473,102.14,102.1,14.27980405]
[1769966092899,4.20168229,102.12,102.09,4.48548476]
[1769966094421,4.20168229,102.12,102.09,14.28076031]
[1769966096905,4.10371702,102.12,102.09,14.28076031]
[1769966099007,7.89140989,102.11,102.08,4.48548476]
[1769966099206,4.20168229,102.11,102.08,4.48548476]
[1769966099519,4.20168229,102.11,102.08,14.28169175]
[1769966100824,17.68331088,102.13,102.09,4.48548476]
[1769966101223,4.20168229,102.12,102.09,4.48548476]
[1769966101529,7.89140989,102.11,102.08,4.48548476]
[1769966102732,7.89140989,102.11,102.08,14.28165967]
[1769966102733,4.20168229,102.11,102.08,14.28165967]
[1769966103731,4.20168229,102.09,102.06,4.48548476]
[1769966103926,7.89140989,102.1,102.06,14.28312447]
[1769966104727,4.20168229,102.08,102.05,9.79870169]
[1769966105025,4.20168229,102.08,102.05,14.28418645]
[1769966105621,4.20168229,102.07,102.04,4.48548476]
[1769966105930,4.20168229,102.05,102.02,4.48548476]
[1769966106228,7.89140989,102.05,102.02,4.48548476]
[1769966106432,7.89140989,102.03,102.0,4.48548476]
[1769966106614,7.89140989,102.02,101.98,14.29076263]
[1769966106813,4.20168229,102.03,101.99,4.48548476]
[1769966107216,7.89140989,102.03,101.99,4.48548476]
[1769966107416,17.80627522,102.04,101.99,4.48548476]
[1769966107622,17.80627522,102.04,102.0,4.44821321]
[1769966108723,8.00590132,102.03,102.0,4.44821321]
[1769966108922,17.80627522,102.04,102.0,14.25208224]
[1769966109430,9.79959056,102.05,102.01,4.44821321]
[1769966109643,8.00590132,102.06,102.01,4.44821321]
[1769966109863,4.31617372,102.03,102.0,14.25208224]
[1769966110142,4.31617372,102.04,102.01,4.44821321]
[1769966111630,8.00590132,102.04,102.01,4.44821321]
[1769966111933,3.6897276,102.07,102.03,4.44821321]
[1769966112528,8.00590132,102.07,102.03,4.44821321]
[1769966112837,13.48632328,102.08,102.04,4.44821321]
[1769966113014,17.802497,102.08,102.04,4.44821321]
[1769966113541,8.00590132,102.08,102.05,14.24733128]
[1769966113712,17.80058671,102.1,102.06,4.44821321]
[1769966114419,13.48441299,102.1,102.06,4.44821321]
[1769966114620,8.00590132,102.07,102.03,14.24875485]
[1769966114943,8.00590132,102.05,102.02,9.8014929]
[1769966115231,8.00590132,102.05,102.01,24.50592189]
[1769966115232,8.00590132,102.04,102.01,9.80267035]
[1769966115423,8.00590132,102.04,102.0,14.25165684]
[1769966115738,8.00590132,102.04,102.01,4.44821321]
[1769966116441,3.6897276,102.03,102.01,4.44821321]
[1769966117419,4.31617372,102.01,101.98,14.25319842]
[1769966117737,3.6897276,101.99,101.97,4.64821321]
[1769966117936,3.6897276,102.0,101.97,14.45448286]
[1769966118138,3.6897276,102.0,101.98,4.44821321]
[1769966118648,3.6897276,101.99,101.97,0.2]
[1769966120044,3.6897276,101.98,101.95,4.64821321]
[1769966120231,8.00590132,101.97,101.95,0.2]
[1769966120543,4.31617372,101.95,101.92,0.2]
[1769966120723,9.25720641,101.94,101.92,0.2]
[1769966121250,9.25720641,101.95,101.92,4.64821321]
[1769966121624,9.25720641,101.94,101.92,4.64821321]
[1769966122029,9.25720641,101.95,101.92,14.45974041]
[1769966122226,9.25720641,101.97,101.93,4.44821321]
[1769966122434,9.25720641,101.96,101.93,4.44821321]
[1769966123134,9.25720641,101.97,101.93,4.44821321]
[1769966123541,4.31617372,101.98,101.94,4.44821321]
[1769966123542,9.25720641,101.98,101.94,4.44821321]
[1769966123754,9.25720641,101.97,101.95,4.44821321]
[1769966124750,9.25720641,101.96,101.93,14.25840134]
[1769966124951,9.25720641,101.96,101.94,14.25784687]
[1769966125348,9.25720641,101.96,101.93,14.25849898]
[1769966127024,9.25720641,101.94,101.92,10.01106916]
[1769966127230,9.25720641,101.95,101.92,4.64821321]
[1769966128243,9.25720641,101.95,101.92,14.45971714]
[1769966128955,13.57338013,101.94,101.92,0.2]
[1769966129131,9.25720641,101.93,101.9,4.64821321]
[1769966129336,9.25720641,101.92,101.9,4.64821321]
[1769966129752,9.25720641,101.94,101.91,14.2600058]
[1769966132135,9.25720641,101.93,101.91,4.44821321]
[1769966132337,9.25720641,101.92,101.9,14.46137126]
[1769966133767,9.25720641,101.94,101.91,4.44821321]
[1769966133965,34.60775629,102.02,101.91,4.44821321]
[1769966133966,9.25720641,101.96,101.92,4.44821321]
[1769966134140,9.25720641,101.95,101.92,4.44821321]
[1769966134453,9.25720641,101.96,101.92,4.44821321]
[1769966135042,13.57338013,101.97,101.92,4.44821321]
[1769966135237,13.57338013,101.97,101.93,9.81065437]
[1769966135238,9.25720641,101.96,101.93,9.81065437]
[1769966135437,9.25720641,101.96,101.93,14.25886758]
[1769966137656,4.31617372,101.97,101.93,4.31668023]
[1769966137842,9.25720641,101.96,101.93,4.31668023]
[1769966138159,13.63163232,101.95,101.91,65.89893473]
[1769966138556,13.63163232,101.95,101.92,4.31668023]
[1769966138752,13.63163232,101.94,101.91,41.36925995]
[1769966138956,4.37442591,101.94,101.91,41.36925995]
[1769966139252,9.25720641,101.94,101.91,41.36925995]
[1769966139456,9.25720641,101.94,101.91,61.58402903]
[1769966139760,9.25720641,101.95,101.92,14.12815546]
[1769966140463,9.25720641,101.94,101.92,14.12815546]
[1769966140645,9.25720641,101.94,101.92,4.31668023]
[1769966140847,9.25720641,101.93,101.91,14.12880523]
[1769966141058,9.25720641,101.94,101.91,14.12880523]
[1769966141356,13.63163232,101.95,101.92,9.81152886]
[1769966141866,9.25720641,101.94,101.92,9.81152886]
[1769966142156,4.37442591,101.97,101.93,4.31668023]
[1769966142338,9.25720641,101.97,101.93,4.31668023]
[1769966142741,13.63163232,101.98,101.93,4.31668023]
[1769966143441,13.63163232,101.98,101.94,9.80969197]
[1769966143641,13.63163232,101.98,101.94,14.1263722]
[1769966144460,9.25720641,101.97,101.94,14.1263722]
[1769966144661,9.25720641,101.96,101.93,9.81025741]
[1769966144959,9.25720641,101.96,101.93,14.12693764]
[1769966145458,13.62132618,101.96,101.93,14.12693764]
[1769966146261,9.25720641,101.96,101.93,14.12693764]
[1769966146467,9.25720641,101.98,101.94,4.15593953]
[1769966147262,24.51176819,102.0,101.95,4.15593953]
[1769966147263,9.25720641,102.0,101.95,4.15593953]
[1769966147649,13.62132618,102.0,101.96,13.96370728]
[1769966148662,13.62132618,102.01,101.97,4.15593953]
[1769966148862,23.42454946,102.01,101.97,4.15593953]
[1769966149055,13.62132618,101.99,101.96,13.96370728]
[1769966152179,4.36411977,101.99,101.96,13.96370728]
[1769966154274,4.36411977,101.98,101.94,13.41314594]
[1769966154445,13.62132618,101.97,101.94,13.96520416]
[1769966155650,4.36411977,101.96,101.93,9.81016595]
[1769966155849,13.62132618,101.96,101.93,9.81016595]
[1769966156355,8.06588157,101.96,101.93,4.15593953]
[1769966157160,3.7017618,101.98,101.94,4.15593953]
[1769966157369,17.87115646,101.99,101.94,4.15593953]
[1769966157682,8.06588157,102.0,101.96,4.15593953]
[1769966158352,13.60999691,102.0,101.97,9.80680592]
[1769966159161,13.60999691,102.0,101.97,13.96274545]
[1769966159383,9.24587714,102.0,101.98,4.15593953]
[1769966159586,23.41144569,102.03,101.98,4.15593953]
[1769966159876,4.36411977,102.02,101.98,4.15593953]
[1769966160379,19.04732592,102.03,101.97,46.29268306]
[1769966160380,13.60999691,102.04,102.0,13.95986109]
[1769966160557,9.24587714,102.03,102.0,13.95986109]
[1769966160882,13.60999691,102.03,102.0,13.95986109]
[1769966161879,13.60999691,102.02,101.99,9.80488283]
[1769966162375,13.60999691,102.01,101.98,9.80537963]
[1769966162585,13.60999691,102.0,101.97,41.20229352]
[1769966163767,9.24587714,102.0,101.97,41.20229352]
[1769966164181,9.24587714,102.01,101.98,13.96156826]
[1769966164390,9.24587714,102.02,101.99,4.15593953]
[1769966164593,9.24587714,102.02,101.97,36.48587714]
[1769966164594,9.24587714,102.0,101.97,13.96223703]
[1769966164880,13.60999691,102.02,101.98,4.15593953]
[1769966166187,9.24587714,102.01,101.98,13.96163481]
[1769966166791,13.60999691,102.01,101.97,13.96248226]
[1769966167585,13.35732898,101.99,101.95,14.13116086]
[1769966167977,9.24587714,101.97,101.94,14.13239182]
[1769966168176,13.35732898,101.98,101.94,14.13239182]
[1769966169680,13.35732898,101.98,101.95,4.32292929]
[1769966170566,9.24587714,101.98,101.95,9.80861831]
[1769966170790,4.11145184,101.97,101.94,4.32292929]
[1769966170986,13.35732898,101.97,101.94,4.32292929]
[1769966172272,13.35732898,101.97,101.94,14.13260258]
[1769966172477,9.24587714,101.97,101.94,14.13260258]
[1769966172878,13.35732898,101.97,101.94,14.13260258]
[1769966173285,4.11145184,101.96,101.92,9.81107569]
[1769966173592,13.35732898,101.94,101.91,14.13550577]
[1769966173971,13.35732898,101.94,101.91,4.32292929]
[1769966175200,13.35732898,101.93,101.9,0.2]
[1769966175799,23.16714268,101.94,101.9,14.33615291]
[1769966176374,4.11145184,101.93,101.9,14.33615291]
[1769966177575,13.35732898,101.93,101.9,14.33615291]
[1769966178910,23.16559001,101.96,101.91,4.32292929]
[1769966179089,13.35732898,101.95,101.91,4.32292929]
[1769966180307,13.35732898,101.95,101.92,9.81161695]
[1769966180522,13.35732898,101.97,101.93,4.32292929]
[1769966180813,9.24587714,101.98,101.94,4.32292929]
[1769966180998,13.35732898,101.99,101.94,4.32292929]
[1769966181207,13.35732898,102.0,101.95,4.32292929]
[1769966182613,4.11145184,102.03,101.98,4.32292929]
[1769966182911,13.35732898,102.04,102.0,4.32292929]
[1769966183279,4.11145184,102.04,102.0,4.32292929]
[1769966183483,13.35732898,102.06,102.01,4.32292929]
[1769966183679,9.24587714,102.05,102.01,4.32292929]
[1769966184184,9.24587714,102.05,102.0,9.24587714]
[1769966184185,9.24587714,102.07,102.03,4.32292929]
[1769966184588,13.35732898,102.07,102.04,9.8000784]
[1769966185213,4.11145184,102.07,102.03,14.12367646]
[1769966185514,9.24587714,102.05,102.03,9.80074717]
[1769966185888,4.11145184,102.03,101.99,14.12744288]
[1769966186095,9.24587714,102.01,101.99,4.32292929]
[1769966186294,9.24587714,102.01,101.99,14.1277974]
[1769966186907,13.35732898,102.03,102.0,4.32292929]
[1769966187613,13.35732898,102.05,102.01,4.32292929]
[1769966188603,13.35732898,102.04,102.01,4.32292929]
[1769966189001,13.35732898,102.04,102.01,14.12521954]
[1769966190116,4.11145184,102.01,101.97,4.32292929]
[1769966190322,13.35732898,102.01,101.97,14.12915549]
[1769966190635,13.35732898,101.99,101.95,4.32292929]
[1769966190802,4.11145184,101.99,101.96,9.80733916]
[1769966191397,13.35732898,101.99,101.96,9.80733916]
[1769966193308,13.35732898,101.97,101.93,4.32292929]
[1769966193509,9.24587714,101.97,101.94,4.32292929]
[1769966193705,13.35732898,101.98,101.94,4.32292929]
[1769966193902,9.24587714,101.97,101.94,14.13216136]
[1769966194299,13.35732898,101.98,101.95,14.13164162]
[1769966194911,13.35732898,101.98,101.95,9.80871233]
[1769966195725,9.24587714,101.97,101.94,14.1323914]
[1769966196603,9.24587714,101.95,101.92,4.32292929]
[1769966196809,13.35732898,101.96,101.92,14.13406092]
[1769966198612,9.24587714,101.98,101.93,4.17272637]
[1769966198817,19.05189763,101.98,101.93,4.17272637]
[1769966199025,13.60439562,101.97,101.93,4.17272637]
[1769966199926,9.24587714,101.96,101.93,13.98300605]
[1769966200425,13.60439562,101.97,101.93,13.98300605]
[1769966201920,9.24587714,101.95,101.92,13.9835127]
[1769966202127,13.60439562,101.96,101.92,13.9835127]
[1769966202502,9.80527233,101.99,101.94,4.17272637]
[1769966202820,13.60439562,101.98,101.94,4.17272637]
[1769966204330,13.60439562,101.98,101.95,9.80872976]
[1769966205414,4.35851848,101.98,101.95,14.20235967]
[1769966205608,13.60439562,101.98,101.95,14.20235967]
[1769966205810,4.31717957,101.96,101.92,4.39362991]
[1769966206006,13.56305671,101.94,101.91,14.20570107]
[1769966206427,9.24587714,101.94,101.91,14.20570107]
[1769966207016,13.56305671,101.95,101.92,4.39362991]
[1769966207352,9.24587714,101.96,101.92,4.39362991]
[1769966207645,4.31717957,101.99,101.94,4.39362991]
[1769966207811,13.56305671,101.99,101.94,4.39362991]
[1769966208619,13.56305671,101.99,101.96,4.39362991]
[1769966209022,9.24587714,102.0,101.96,4.39362991]
[1769966209924,13.56305671,102.0,101.96,4.39362991]
[1769966210850,13.56305671,102.0,101.97,9.80680592]
[1769966212363,13.56305671,101.98,101.94,4.39362991]
[1769966212557,9.24587714,101.99,101.96,14.20110596]
[1769966212731,23.366415,102.01,101.97,4.39362991]
[1769966213237,9.24587714,102.0,101.97,14.19974278]
[1769966213651,13.56305671,102.0,101.96,38.72030182]
[1769966213951,13.56305671,101.99,101.96,14.20088244]
[1769966214155,9.24587714,101.99,101.96,14.20088244]
[1769966214543,14.12053786,102.01,101.97,4.39362991]
[1769966214750,9.24587714,102.0,101.97,14.20025692]
[1769966214948,13.56305671,102.0,101.97,14.20025692]
[1769966216255,23.36770286,102.0,101.97,4.39362991]
[1769966216453,13.56305671,101.98,101.95,14.20184514]
[1769966217355,9.24587714,101.98,101.95,14.20184514]
[1769966217854,13.56305671,101.99,101.96,4.39362991]
[1769966218437,9.24848596,102.01,101.97,4.39362991]
[1769966218651,13.56566553,102.02,101.98,4.39362991]
[1769966219546,19.04903835,102.04,102.0,4.39362991]
[1769966219950,9.24848596,102.02,101.99,14.19851274]
[1769966220150,4.31717957,102.01,101.98,4.39362991]
[1769966220347,34.30074839,102.04,101.96,51.75760742]
[1769966220348,13.56566553,102.0,101.97,14.19987003]
[1769966220673,13.56566553,102.01,101.97,14.19987003]
[1769966220955,4.31717957,102.01,101.97,14.19987003]
[1769966221159,13.56566553,102.01,101.98,14.19936689]
[1769966221359,13.56566553,102.0,101.97,9.80648309]
[1769966221552,9.24848596,102.0,101.97,4.39362991]
[1769966221754,23.36821007,102.02,101.97,4.39362991]
[1769966222058,13.56566553,102.02,101.97,4.39362991]
[1769966222238,13.56566553,102.03,101.98,4.39362991]
[1769966222437,13.56566553,102.03,101.99,4.39362991]
[1769966222864,4.31717957,102.03,101.99,4.39362991]
[1769966223057,13.56566553,102.04,101.99,4.39362991]
[1769966223258,13.56566553,102.04,101.98,9.24848596]
[1769966223259,13.56566553,102.02,101.98,4.39362991]
[1769966223452,13.56566553,102.01,101.97,4.39362991]
[1769966223649,13.56566553,102.01,101.98,4.39362991]
[1769966224147,19.0510437,102.02,101.98,4.39362991]
[1769966224348,23.36698631,102.03,101.98,4.39362991]
[1769966224654,19.04889992,102.04,101.99,4.39362991]
[1769966224853,23.36607949,102.04,101.99,4.39362991]
[1769966225557,13.56566553,102.05,102.0,4.39362991]
[1769966225869,23.36489392,102.05,102.01,14.1965904]
[1769966226244,13.56566553,102.05,102.01,14.1965904]
[1769966226462,13.56566553,102.04,102.01,14.1965904]
[1769966227058,9.24848596,102.05,102.02,4.39362991]
[1769966227239,13.56566553,102.05,102.02,4.39362991]
[1769966227439,9.24848596,102.05,102.02,4.39362991]
[1769966227636,9.24848596,102.05,102.02,14.19487078]
[1769966228045,23.33755084,102.06,102.02,14.19487078]
[1769966228257,13.53932108,102.04,102.01,14.23863468]
[1769966228458,9.24848596,102.04,102.01,14.23863468]
[1769966228645,13.53932108,102.05,102.01,14.23863468]
[1769966229041,13.53932108,102.06,102.03,4.43614669]
[1769966229865,13.53932108,102.06,102.02,38.74310218]
[1769966230160,13.53932108,102.06,102.03,14.23712108]
[1769966230558,4.29083512,102.06,102.03,14.23712108]
[1769966230752,13.53932108,102.06,102.03,14.23712108]
[1769966232066,23.33755576,102.06,102.03,4.43614669]
[1769966232659,13.53932108,102.04,102.01,14.23894803]
[1769966232863,13.53932108,102.05,102.02,9.80194878]
[1769966234664,13.53932108,102.05,102.02,4.43614669]
[1769966235247,4.29083512,102.02,101.99,41.4807485]
[1769966235565,13.53932108,102.02,101.99,9.80461715]
[1769966236069,13.53932108,102.06,102.01,4.43614669]
[1769966236674,23.33773332,102.06,102.02,14.23814629]
[1769966237366,13.53932108,102.06,102.02,9.8019996]
[1769966237558,23.33600294,102.08,102.03,4.43614669]
[1769966237958,13.53932108,102.07,102.03,4.43614669]
[1769966239170,9.24848596,102.08,102.04,14.23622509]
[1769966239353,13.53932108,102.08,102.04,14.23622509]
[1769966240781,13.53932108,102.07,102.04,14.23622509]
[1769966241278,4.29083512,102.05,102.01,24.50548638]
[1769966241455,13.53932108,102.05,102.02,9.80130089]
[1769966241775,4.29083512,102.05,102.03,9.80083897]
[1769966242774,13.53932108,102.06,102.03,9.80083897]
[1769966244377,4.29083512,102.05,102.02,9.80162573]
[1769966244577,19.0469017,102.06,102.01,4.43614669]
[1769966244578,13.53932108,102.04,102.01,4.43614669]
[1769966244870,23.33990827,102.04,102.0,14.23966301]
[1769966245075,9.24848596,102.03,102.0,14.23966301]
[1769966247160,13.53932108,102.03,102.0,14.23966301]
[1769966247463,4.29083512,102.03,102.0,9.80351632]
[1769966247666,13.53932108,102.03,102.0,9.80351632]
[1769966248059,13.53932108,102.03,102.0,14.23966301]
[1769966248380,9.24848596,102.04,102.01,4.43614669]
[1769966249079,13.53932108,102.05,102.01,4.43614669]
[1769966249266,13.53932108,102.06,102.02,14.23814629]
[1769966249574,13.53932108,102.06,102.02,34.30699861]
[1769966249760,9.24848596,102.06,102.03,4.43614669]
[1769966250261,9.24848596,102.05,102.03,4.43614669]
[1769966250573,9.24848596,102.05,102.02,9.8019996]
[1769966250574,9.24848596,102.05,102.02,14.23814629]
[1769966253263,13.53932108,102.06,102.02,14.23814629]
[1769966253764,23.33749603,102.06,102.02,14.23814629]
[1769966254183,13.53932108,102.05,102.01,37.02249354]
[1769966254384,7.9863725,102.04,102.01,41.45864023]
[1769966254888,7.9863725,102.03,102.01,27.22]
[1769966255188,3.69553738,102.02,101.99,14.24060813]
[1769966255565,7.9863725,102.02,101.99,9.80446144]
[1769966255767,3.69553738,102.01,101.98,41.46153006]
[1769966256073,14.09273661,102.03,101.99,4.43614669]
[1769966256381,13.52927347,102.05,102.01,4.43614669]
[1769966256787,23.32843563,102.05,102.01,4.43614669]
[1769966257868,23.32843563,102.05,101.99,36.45843835]
[1769966257869,13.56182227,102.04,102.0,4.48406554]
[1769966258208,23.36201237,102.04,102.0,14.28752719]
[1769966259284,9.23843835,102.04,102.01,4.48406554]
[1769966259462,13.56182227,102.05,102.01,4.48406554]
[1769966260288,13.56182227,102.05,102.02,9.8019996]
[1769966260462,13.56182227,102.05,102.02,14.28606514]
[1769966260665,23.36098131,102.05,102.02,4.48406554]
[1769966261482,13.56182227,102.05,102.02,4.48406554]
[1769966261985,9.23843835,102.05,102.02,4.48406554]
[1769966262189,9.23843835,102.08,102.03,4.48406554]
[1769966262369,9.23843835,102.08,102.05,4.48406554]
[1769966263491,9.23843835,102.08,102.05,14.2826948]
[1769966263990,13.56182227,102.08,102.05,14.2826948]
[1769966264482,9.23843835,102.08,102.05,14.2826948]
[1769966264791,13.68196358,102.07,102.04,9.79955059]
[1769966264968,13.68196358,102.07,102.04,14.12007995]
[1769966264969,9.23843835,102.07,102.04,14.12007995]
[1769966266274,9.23843835,102.06,102.04,14.12007995]
[1769966266589,9.23843835,102.06,102.04,9.79955059]
[1769966267090,13.68196358,102.07,102.04,9.79955059]
[1769966267278,9.23843835,102.06,102.03,14.12110993]
[1769966267678,9.23843835,102.06,102.04,9.80005445]
[1769966268085,13.68196358,102.07,102.04,9.80005445]
[1769966269771,23.47857121,102.08,102.05,4.32052936]
[1769966270487,9.23843835,102.07,102.04,14.12058381]
[1769966271194,9.23843835,102.07,102.05,9.79905861]
[1769966271486,23.47857121,102.08,102.05,9.79905861]
[1769966272191,13.68196358,102.08,102.05,9.79905861]
[1769966272396,0.1,102.1,102.06,4.32052936]
[1769966272692,0.1,102.1,102.07,4.32052936]
[1769966273272,0.1,102.11,102.07,4.32052936]
[1769966274397,0.1,102.11,102.08,14.1167676]
[1769966274582,9.89187607,102.13,102.08,14.1167676]
[1769966274583,13.78196358,102.13,102.09,4.32052936]
[1769966275678,0.1,102.13,102.09,4.32052936]
[1769966276477,0.1,102.13,102.1,14.11484865]
[1769966276684,0.1,102.13,102.11,4.32052936]
[1769966278176,0.1,102.13,102.1,38.60064688]
[1769966279595,13.68196358,102.16,102.11,4.32052936]
[1769966279780,9.23843835,102.15,102.11,4.32052936]
[1769966280378,13.66494137,102.14,102.1,41.33484865]
[1769966280573,9.22141614,102.16,102.11,4.32052936]
[1769966280778,13.66494137,102.16,102.11,4.32052936]
[1769966281286,13.66494137,102.15,102.11,4.32052936]
[1769966281489,9.22141614,102.14,102.11,4.32052936]
[1769966281793,13.66494137,102.15,102.11,4.32052936]
[1769966282293,13.66494137,102.15,102.11,14.11339524]
[1769966282484,13.66494137,102.15,102.12,4.32052936]
[1769966282680,23.45448629,102.15,102.12,4.32052936]
[1769966283796,4.44352523,102.14,102.1,41.33439058]
[1769966283974,13.66494137,102.14,102.11,14.11378697]
[1769966284180,9.22141614,102.15,102.12,9.79211281]
[1769966284496,9.22141614,102.15,102.12,14.11264217]
[1769966284695,4.54352523,102.17,102.13,4.32052936]
[1769966284994,0.1,102.17,102.13,4.32052936]